bitfinex-derivatives/quotes_ETHF0:USTF0_20250908
["timestamp","ask_amount","ask_price","bid_price","bid_amount"]
[1757360252278,0.1959,4297.4,4297.3,0.3059]
[1757360252986,0.2376,4298.1,4298.0,0.4291]
[1757360253285,0.413,4298.3,4298.0,0.3702]
[1757360253589,0.413,4298.3,4298.1,0.3059]
[1757360255079,0.413,4298.3,4298.2,0.3059]
[1757360256391,0.413,4298.3,4298.2,0.4409]
[1757360256682,4.413,4298.3,4298.1,0.092]
[1757360256887,0.1959,4298.2,4298.1,0.092]
[1757360257184,0.413,4298.3,4298.2,0.3059]
[1757360257685,0.6089,4298.3,4298.2,0.3059]
[1757360258283,0.6089,4298.3,4297.9,0.072]
[1757360258586,0.413,4298.3,4297.8,0.246]
[1757360258987,0.1955,4298.2,4297.9,0.3059]
[1757360259175,0.1955,4298.2,4297.5,0.1232]
[1757360259379,0.1955,4298.2,4297.0,0.1232]
[1757360259581,0.1955,4297.9,4297.1,0.246]
[1757360260281,0.1955,4297.9,4297.2,0.3059]
[1757360263082,0.1962,4297.3,4297.2,0.733]
[1757360263789,0.1955,4297.9,4297.3,0.3059]
[1757360263987,0.6085,4298.3,4297.3,0.3059]
[1757360264189,0.58206477,4298.2,4297.3,0.3059]
[1757360264384,0.58206477,4298.1,4297.3,0.3059]
[1757360264584,0.6085,4298.3,4297.3,0.3059]
[1757360264784,0.5821584,4298.2,4297.3,0.3059]
[1757360265093,0.7783584,4298.1,4298.0,0.6444]
[1757360265282,0.1962,4298.1,4298.0,0.8562]
[1757360265483,0.413,4298.3,4298.1,0.3059]
[1757360265679,0.6092,4298.3,4298.2,0.733]
[1757360266284,0.8196,4298.3,4298.2,0.5212]
[1757360266587,0.8196,4298.3,4298.2,0.3059]
[1757360266785,0.8196,4298.3,4298.0,0.1232]
[1757360267089,0.4136,4298.1,4298.0,0.4428]
[1757360267591,0.1954,4298.0,4297.5,0.4428]
[1757360267798,0.1954,4297.9,4297.2,0.3196]
[1757360267990,0.58250629,4297.8,4297.2,0.3196]
[1757360268189,0.1954,4297.9,4297.2,0.3196]
[1757360268593,0.58285114,4297.8,4296.8,0.3196]
[1757360268886,0.1954,4297.6,4296.8,0.3196]
[1757360269495,0.58303566,4297.5,4296.8,0.3196]
[1757360269697,0.1196,4298.0,4296.8,0.3196]
[1757360269999,0.81573598,4297.9,4296.8,0.3196]
[1757360270201,0.58303598,4297.8,4296.8,0.3196]
[1757360270396,0.1954,4297.6,4296.8,0.3196]
[1757360270593,0.205,4296.9,4296.8,0.5217]
[1757360270792,0.4136,4296.9,4296.8,0.5217]
[1757360271690,0.4136,4296.9,4296.8,0.727]
[1757360271891,0.1954,4297.9,4296.9,0.3196]
[1757360272097,0.58365725,4297.8,4297.0,0.1197]
[1757360272302,0.78865725,4297.7,4297.6,0.5217]
[1757360272895,0.78865725,4297.7,4297.6,0.727]
[1757360273096,0.58365725,4297.7,4297.6,0.3196]
[1757360273297,0.58365725,4298.1,4297.6,0.3196]
[1757360273501,0.58365725,4298.0,4297.6,0.3196]
[1757360273698,0.58365725,4297.9,4297.6,0.3196]
[1757360273901,0.58365725,4297.8,4297.6,0.3196]
[1757360274097,0.77905725,4297.7,4297.1,0.3196]
[1757360274302,0.58365725,4297.6,4297.1,0.3196]
[1757360274602,0.58365725,4297.6,4297.5,0.1197]
[1757360274902,0.78027853,4298.0,4297.5,0.4393]
[1757360275204,0.58487853,4297.9,4297.5,0.1197]
[1757360275399,0.1954,4298.0,4297.5,0.1197]
[1757360275400,0.58487853,4297.8,4297.5,0.1197]
[1757360275605,0.58487853,4297.7,4297.6,0.3196]
[1757360275906,0.413,4298.3,4297.7,0.3196]
[1757360276204,0.58522938,4298.2,4297.6,0.3196]
[1757360276406,0.99882938,4298.1,4298.0,0.6414]
[1757360276708,0.99882938,4298.1,4297.6,0.3196]
[1757360276904,0.205,4297.7,4297.6,0.727]
[1757360277306,0.413,4298.3,4298.2,0.2021]
[1757360277610,0.9984741,4298.3,4298.2,0.727]
[1757360278013,0.413,4298.3,4298.2,0.727]
[1757360278808,0.99854294,4298.3,4298.2,0.727]
[1757360279207,0.413,4298.3,4298.2,0.727]
[1757360279605,0.618,4298.3,4298.2,0.727]
[1757360279908,1.41210975,4298.3,4298.2,0.727]
[1757360281112,0.413,4298.3,4298.2,0.727]
[1757360281714,0.413,4298.3,4298.2,4.727]
[1757360282313,0.8266,4298.3,4298.2,0.727]
[1757360282908,0.618,4298.3,4298.2,0.727]
[1757360283111,0.413,4298.3,4298.2,0.727]
[1757360284912,0.618,4298.3,4298.2,0.727]
[1757360285117,0.413,4298.3,4298.2,0.727]
[1757360290620,0.8266,4298.3,4298.2,0.727]
[1757360290822,1.022,4298.3,4298.2,0.3196]
[1757360291023,0.8266,4298.3,4298.2,0.5217]
[1757360291318,0.8266,4298.3,4298.2,0.727]
[1757360292420,0.4136,4297.8,4297.7,0.5217]
[1757360292820,0.4136,4297.8,4297.7,0.727]
[1757360294726,0.413,4298.3,4298.2,0.727]
[1757360300523,0.8237,4298.3,4298.2,0.3196]
[1757360300722,0.8237,4298.3,4298.0,0.1197]
[1757360300920,0.6067,4298.1,4298.0,0.4372]
[1757360301127,0.4107,4298.1,4298.0,0.6467]
[1757360301530,0.4107,4298.1,4298.0,0.3175]
[1757360301724,0.6067,4298.1,4297.5,0.4372]
[1757360302526,0.6067,4298.1,4297.5,0.1197]
[1757360302728,0.4107,4298.1,4297.5,0.1197]
[1757360302925,0.4107,4297.7,4297.6,0.527]
[1757360304037,0.6067,4297.7,4297.6,0.3175]
[1757360304635,0.6067,4297.7,4297.5,0.1197]
[1757360304932,0.4107,4297.6,4297.2,0.00349081]
[1757360305237,0.4107,4297.4,4297.3,0.3175]
[1757360305735,0.6067,4297.4,4297.3,0.3175]
[1757360306230,0.196,4297.3,4297.2,0.00349081]
[1757360306430,0.6067,4297.3,4297.2,0.00349081]
[1757360306932,4.6067,4297.3,4297.2,0.00349081]
[1757360307126,0.4107,4296.7,4296.5,0.1232]
[1757360307330,0.4107,4296.4,4296.3,33.8535]
[1757360307541,0.4107,4296.1,4296.0,0.1182]
[1757360307732,0.6032,4296.1,4295.0,0.1182]
[1757360308038,0.4107,4296.1,4296.0,0.5422]
[1757360308233,0.4107,4296.1,4296.0,0.8597]
[1757360309240,0.7756,4296.1,4296.0,0.8597]
[1757360309739,0.7756,4296.1,4296.0,0.6452]
[1757360311531,0.9681,4296.1,4295.6,0.3175]
[1757360311936,0.7756,4296.1,4296.0,0.6452]
[1757360313232,0.9681,4296.1,4296.0,0.3175]
[1757360313438,0.7756,4296.1,4295.0,0.3612]
[1757360313632,0.7756,4296.1,4295.6,0.3175]
[1757360313633,0.1925,4296.0,4295.6,0.3175]
[1757360313945,0.4107,4295.7,4295.6,0.527]
[1757360314440,0.4107,4295.7,4295.6,0.7415]
[1757360317144,0.6032,4295.7,4295.6,0.3175]
[1757360317442,0.4107,4295.7,4295.6,0.527]
[1757360317642,0.4107,4295.7,4295.6,0.7415]
[1757360317836,0.7756,4296.1,4296.0,0.6452]
[1757360318235,0.7756,4296.1,4296.0,0.8597]
[1757360318437,4.7756,4296.1,4295.0,0.1182]
[1757360318641,0.7756,4296.1,4296.0,0.3277]
[1757360319237,0.7756,4296.1,4295.0,0.1182]
[1757360319541,0.4107,4295.7,4295.6,0.7415]
[1757360320139,0.6029,4295.7,4295.6,0.3175]
[1757360320540,0.4107,4295.4,4295.3,0.527]
[1757360321147,0.4107,4295.4,4295.3,0.7415]
[1757360321646,0.7756,4296.1,4296.0,0.3277]
[1757360321839,0.7756,4296.1,4296.0,0.6452]
[1757360322548,0.9678,4296.1,4296.0,0.3175]
[1757360323039,4.7756,4296.1,4295.5,0.4357]
[1757360323245,0.4107,4295.6,4295.5,0.6452]
[1757360323751,0.6029,4295.6,4295.5,0.4357]
[1757360324045,0.4107,4295.1,4295.0,0.4357]
[1757360324246,0.4107,4295.1,4295.0,0.6452]
[1757360325042,0.2036,4295.1,4295.0,0.8597]
[1757360325946,0.00349081,4295.5,4295.0,0.8597]
[1757360326145,0.21939081,4295.5,4295.4,0.7285]
[1757360326346,0.00349081,4295.5,4295.4,0.7285]
[1757360329154,0.3649,4296.1,4296.0,0.8559]
[1757360329643,0.12,4298.0,4296.1,0.3145]
[1757360329951,15.91876502,4297.9,4296.1,0.3145]
[1757360330145,0.59024502,4297.8,4296.1,0.3145]
[1757360330341,0.59024502,4297.8,4296.1,0.54721999]
[1757360330342,0.82296502,4297.8,4296.1,0.54721999]
[1757360330545,0.82296502,4297.7,4296.2,0.3145]
[1757360330745,0.59024502,4297.6,4296.2,0.3145]
[1757360330945,0.1958,4297.9,4296.2,0.3145]
[1757360331149,0.8234916,4297.8,4296.2,0.3145]
[1757360331352,0.5907716,4297.7,4296.2,0.3145]
[1757360331649,0.8234916,4297.7,4296.2,0.3145]
[1757360331853,0.5907716,4297.6,4296.2,0.3145]
[1757360332047,0.4198,4297.5,4296.2,0.3145]
[1757360332255,0.1958,4297.4,4296.2,0.3145]
[1757360332448,0.59133279,4297.3,4296.2,0.3145]
[1757360332649,0.1958,4297.4,4296.2,0.3145]
[1757360333166,0.2159,4296.3,4296.2,0.7285]
[1757360334055,0.362,4297.3,4295.5,0.5414]
[1757360334056,0.2159,4295.6,4295.5,0.5414]
[1757360334653,0.2159,4295.6,4295.5,0.8559]
[1757360335456,0.4199,4295.6,4295.5,0.8559]
[1757360336250,0.2159,4295.6,4295.5,0.8559]
[1757360336454,0.1958,4296.8,4295.5,0.5414]
[1757360336753,0.1958,4296.6,4295.6,0.3145]
[1757360337060,0.2159,4296.6,4296.5,0.8559]
[1757360337357,0.80854778,4296.6,4296.5,0.8559]
[1757360337556,0.59264778,4296.6,4296.5,0.8559]
[1757360337759,0.59264778,4296.6,4296.5,0.5414]
[1757360338057,0.2159,4296.7,4296.6,0.7285]
[1757360338257,0.80860138,4296.7,4296.6,0.7285]
[1757360338651,1.01260138,4296.7,4296.6,0.3145]
[1757360338957,1.20840138,4296.7,4296.6,0.3145]
[1757360339159,1.01260138,4296.7,4296.6,0.5228]
[1757360339362,0.59270138,4296.7,4296.6,0.7285]
[1757360339757,0.5779,4297.3,4297.2,0.2083]
[1757360339959,1.17061883,4297.3,4297.2,0.5228]
[1757360340148,0.80861883,4297.3,4297.2,0.5228]
[1757360340349,1.01261883,4297.3,4297.2,0.5228]
[1757360340554,0.80861883,4297.3,4297.2,0.7285]
[1757360340754,1.01261883,4297.3,4297.2,0.7285]
[1757360340954,0.4199,4296.7,4296.6,0.5228]
[1757360341860,0.4199,4296.7,4296.6,0.7285]
[1757360342060,0.6618,4297.5,4296.6,0.414]
[1757360342254,0.59256673,4297.4,4296.7,0.3145]
[1757360342454,1.01246673,4297.3,4297.2,0.5228]
[1757360343467,0.4199,4296.7,4296.6,0.5228]
[1757360345559,0.6157,4296.7,4296.6,0.3145]
[1757360345866,0.4199,4296.7,4296.6,0.5228]
[1757360346259,0.4199,4296.7,4296.6,0.3145]
[1757360346558,0.6157,4296.7,4296.6,0.3145]
[1757360346759,1.20809286,4296.7,4296.0,0.1274]
[1757360346959,0.6157,4296.7,4296.1,0.3145]
[1757360349066,0.4078,4296.6,4296.1,0.3145]
[1757360349966,0.8277,4296.6,4296.5,0.6502]
[1757360350559,0.8277,4296.6,4296.5,0.8559]
[1757360351258,0.4078,4296.6,4296.5,0.8559]
[1757360352867,0.6237,4296.6,4296.5,0.8559]
[1757360353169,0.8277,4296.6,4296.5,0.8559]
[1757360353866,0.4078,4296.6,4296.5,0.8559]
[1757360355463,0.4078,4296.6,4296.5,0.1274]
[1757360355464,1.0235,4296.6,4296.5,0.1274]
[1757360355659,0.4199,4296.1,4296.0,0.6502]
[1757360358273,0.4199,4296.1,4296.0,0.8559]
[1757360359374,0.2159,4296.1,4296.0,0.8559]
[1757360359576,0.8239,4296.6,4296.5,0.3311]
[1757360359871,1.61168703,4296.6,4296.5,0.6451]
[1757360360068,1.21728703,4296.6,4296.5,0.8622]
[1757360360274,0.99998703,4296.6,4296.5,0.8622]
[1757360361575,1.00010469,4296.6,4296.5,0.8622]
[1757360361876,0.4078,4296.6,4296.5,0.8622]
[1757360364678,0.6251,4296.6,4296.5,0.8622]
[1757360364972,1.41625184,4296.6,4296.0,0.1274]
[1757360365172,0.4161,4296.2,4296.1,0.4271]
[1757360365370,0.4161,4296.2,4296.1,0.7411]
[1757360365771,0.6251,4296.6,4296.5,0.8622]
[1757360365973,1.21746973,4296.6,4296.5,0.8622]
[1757360367073,1.41626973,4296.6,4296.5,0.8622]
[1757360368278,0.4161,4296.1,4296.0,0.3374]
[1757360368477,0.4161,4296.1,4296.0,0.6514]
[1757360369984,0.4161,4296.1,4296.0,0.8685]
[1757360370882,0.4078,4296.6,4296.0,0.5545]
[1757360371083,0.8239,4296.6,4296.5,0.3311]
[1757360371284,1.41631392,4296.6,4296.5,0.6451]
[1757360371484,1.61191392,4296.6,4296.5,0.6451]
[1757360372084,1.41631392,4296.6,4296.5,0.6451]
[1757360372386,1.61191392,4296.6,4296.5,0.6451]
[1757360372986,1.61191392,4296.6,4296.5,0.4351]
[1757360373580,1.61191392,4296.6,4296.5,0.6451]
[1757360373781,1.41631392,4296.6,4296.5,0.6451]
[1757360374481,1.61191392,4296.6,4296.5,0.6451]
[1757360375077,1.41631392,4296.6,4296.0,0.1274]
[1757360375283,0.4161,4296.1,4296.0,0.8685]
[1757360375491,0.2173,4296.1,4296.0,0.8685]
[1757360375682,0.4078,4296.6,4296.5,0.1211]
[1757360375882,0.4078,4296.6,4296.5,0.8622]
[1757360375883,0.6251,4296.6,4296.5,0.8622]
[1757360376184,1.4164035,4296.6,4296.5,0.8622]
[1757360376584,1.0003035,4296.6,4296.5,0.8622]
[1757360377287,1.2176035,4296.6,4296.5,0.8622]
[1757360377588,1.0003035,4296.6,4296.5,0.8622]
[1757360377784,1.4164035,4296.6,4296.5,0.8622]
[1757360379186,1.6118035,4296.6,4296.5,0.6451]
[1757360379382,1.4164035,4296.6,4296.5,0.6451]
[1757360379578,1.4164035,4296.6,4296.5,0.8622]
[1757360380088,1.4164035,4296.6,4296.0,0.1274]
[1757360380287,0.4161,4296.2,4296.1,0.524]
[1757360380683,1.0086035,4296.2,4296.1,0.524]
[1757360384292,1.2943035,4296.2,4296.1,0.524]
[1757360388994,1.0955035,4296.2,4296.1,0.7198]
[1757360389291,1.2967035,4296.2,4296.1,0.7198]
[1757360389486,0.601,4295.7,4295.0,0.13089081]
[1757360389692,0.4058,4295.2,4295.1,0.518]
[1757360390094,0.601,4295.2,4295.1,0.518]
[1757360390295,1.19304926,4295.2,4295.1,0.518]
[1757360391599,0.99784926,4295.2,4295.1,0.518]
[1757360392799,0.99784926,4295.2,4295.1,0.7138]
[1757360393001,0.4058,4295.2,4295.1,0.7138]
[1757360396603,0.2046,4295.2,4295.1,0.7138]
[1757360397302,0.4058,4295.2,4295.1,0.7138]
[1757360398094,0.601,4295.1,4295.0,0.31289081]
[1757360399405,0.601,4295.1,4295.0,0.52149081]
[1757360399702,0.601,4295.1,4295.0,0.64149081]
[1757360400594,0.1952,4295.7,4295.1,0.3094]
[1757360400801,0.4058,4295.7,4295.3,0.3094]
[1757360401101,0.601,4295.4,4295.3,0.3094]
[1757360401305,1.19113494,4295.4,4295.3,0.3094]
[1757360401907,1.47083494,4295.4,4295.3,0.3094]
[1757360402202,0.1952,4295.3,4295.1,0.3094]
[1757360402404,0.99593494,4295.2,4295.1,0.518]
[1757360403408,1.19113494,4295.2,4295.0,0.00349081]
[1757360403713,0.601,4294.6,4294.5,0.4305]
[1757360403899,0.601,4294.6,4294.5,0.6391]
[1757360404102,0.4058,4294.6,4294.5,0.6391]
[1757360404407,0.4058,4294.6,4294.5,0.8349]
[1757360409103,0.601,4294.6,4294.5,0.6391]
[1757360409307,1.1903324,4294.6,4294.5,0.6391]
[1757360410105,0.99513179,4294.6,4294.5,0.6391]
[1757360411308,0.99513602,4294.6,4294.5,0.8349]
[1757360412320,1.19033602,4294.6,4294.5,0.4305]
[1757360412714,1.19033602,4294.6,4294.5,0.6391]
[1757360413414,0.99513602,4294.6,4294.5,0.6391]
[1757360413813,0.99513602,4294.6,4294.5,0.8349]
[1757360415120,1.19033602,4294.6,4294.5,0.3094]
[1757360415518,1.19033602,4294.6,4294.5,0.638]
[1757360416412,1.19033602,4294.6,4294.1,0.3044]
[1757360416611,0.2017,4294.1,4294.0,0.5328]
[1757360417007,0.6372,4294.1,4294.0,0.8372]
[1757360419122,0.4355,4294.1,4294.0,0.8372]
[1757360426230,0.827,4294.1,4294.0,0.8372]
[1757360428132,1.4191315,4294.1,4294.0,0.8372]
[1757360429732,2.0336315,4294.1,4294.0,0.6315]
[1757360430134,1.8382315,4294.1,4294.0,0.8372]
[1757360431150,1.6208315,4294.1,4294.0,0.8372]
[1757360437849,1.62163477,4294.1,4294.0,0.8372]
[1757360438643,1.83903477,4294.1,4294.0,0.8372]
[1757360445648,1.41993477,4294.1,4294.0,5.07008]
[1757360445854,0.827,4294.1,4294.0,5.07008]
[1757360446859,0.827,4294.1,4294.0,4.8372]
[1757360448662,0.827,4294.1,4294.0,0.8372]
[1757360449360,0.1742,4294.1,4294.0,0.8372]
[1757360449559,0.3228,4294.4,4294.0,0.8372]
[1757360449760,0.2064,4294.2,4294.1,0.7288]
[1757360449951,0.5292,4294.2,4294.1,0.7288]
[1757360450348,0.7423,4294.2,4294.1,0.7288]
[1757360454563,0.5292,4294.2,4294.1,0.7288]
[1757360455062,0.3228,4294.5,4294.2,0.3148]
[1757360455265,0.3228,4294.5,4294.4,0.414]
[1757360455458,0.3228,4294.5,4294.4,0.7288]
[1757360456054,0.3434,4294.6,4294.5,0.541]
[1757360456260,0.3228,4295.4,4295.3,0.414]
[1757360456460,0.3228,4295.4,4295.3,0.5448]
[1757360458660,0.5292,4295.4,4295.3,0.414]
[1757360458965,0.7423,4295.4,4295.3,0.414]
[1757360460460,0.5292,4295.4,4295.3,0.5448]
[1757360461461,0.7423,4295.4,4295.3,0.414]
[1757360465167,0.12769081,4295.5,4295.3,0.414]
[1757360465168,0.00349081,4295.5,4295.3,0.414]
[1757360465465,0.5292,4295.4,4295.3,0.414]
[1757360466864,0.3228,4295.4,4295.3,0.5448]
[1757360467168,0.00349081,4295.5,4295.4,0.5448]
[1757360467564,0.32629081,4295.5,4295.4,0.5448]
[1757360467758,0.32629081,4295.5,4295.4,0.7858]
[1757360468267,0.86999081,4295.5,4295.4,0.241]
[1757360468466,0.86999081,4295.5,4294.8,0.241]
[1757360468666,0.3373,4295.0,4294.9,0.2056]
[1757360468862,0.5437,4295.0,4294.9,0.2056]
[1757360469367,0.8665,4295.0,4294.9,0.2056]
[1757360469567,0.8665,4295.0,4294.9,0.414]
[1757360471976,0.3228,4295.4,4295.3,0.414]
[1757360472171,0.5292,4295.4,4295.3,0.414]
[1757360472359,0.3228,4295.4,4295.3,0.414]
[1757360472669,0.00349081,4295.5,4295.4,0.5448]
[1757360473570,0.32629081,4295.5,4295.4,0.5448]
[1757360477268,0.32629081,4295.5,4295.4,0.7858]
[1757360479566,0.3103,4296.8,4296.7,0.5283]
[1757360479876,0.2141,4297.0,4296.9,0.7145]
[1757360480067,0.1272,4298.0,4296.9,0.89994869]
[1757360480468,0.1272,4298.0,4296.9,0.58614869]
[1757360480770,0.5376,4297.5,4297.4,0.2023]
[1757360480970,0.4134,4297.5,4297.4,0.7145]
[1757360481175,0.1272,4298.0,4297.5,0.3138]
[1757360481370,0.5406,4298.0,4297.9,0.4007]
[1757360481767,0.8509,4298.0,4297.9,0.4007]
[1757360482768,0.7237,4298.0,4297.9,0.7145]
[1757360483576,0.7969,4298.4,4298.3,0.4007]
[1757360483577,1.1072,4298.4,4298.3,0.4007]
[1757360483780,1.3213,4298.4,4298.3,0.9555]
[1757360484376,0.9164,4298.4,4298.3,0.9555]
[1757360484869,1.1157,4298.4,4298.3,0.9555]
[1757360485270,0.7237,4298.4,4298.3,0.9555]
[1757360487566,0.7237,4298.4,4298.3,0.6417]
[1757360488273,0.7237,4298.4,4298.3,0.4007]
[1757360488472,0.7237,4298.4,4298.3,0.241]
[1757360489278,0.7237,4298.4,4298.3,0.4433]
[1757360489677,0.7237,4298.4,4298.3,0.9555]
[1757360489980,0.5931,4298.7,4298.3,0.9555]
[1757360490169,0.8072,4298.7,4298.6,0.4007]
[1757360490369,1.1175,4298.7,4298.6,0.7145]
[1757360490571,0.8189,4298.7,4298.6,0.7145]
[1757360491373,0.2945,4298.7,4298.6,0.7145]
[1757360491577,1.0182,4298.7,4298.6,0.2023]
[1757360491778,0.7237,4298.3,4298.2,0.5161]
[1757360491983,0.7237,4298.3,4298.2,0.9555]
[1757360495079,0.4278,4298.6,4298.2,0.9555]
[1757360495377,0.5244,4298.5,4298.4,0.4007]
[1757360495582,0.5244,4298.5,4298.4,0.7145]
[1757360496874,0.87,4298.6,4298.4,0.7145]
[1757360497084,0.87,4298.6,4298.5,0.3138]
[1757360497384,0.4422,4298.6,4298.5,0.8353]
[1757360498385,0.1272,4300.5,4298.5,0.4007]
[1757360498687,0.3103,4298.8,4298.5,0.4007]
[1757360499086,0.1272,4299.0,4298.5,0.4007]
[1757360499385,0.3103,4298.8,4298.5,0.4007]
[1757360500283,0.5144,4298.9,4298.7,0.41869]
[1757360500487,0.5144,4298.9,4298.5,4.41871]
[1757360500682,0.8247,4298.9,4298.5,4.41871]
[1757360500884,0.5144,4298.9,4298.6,33.755]
[1757360501193,0.3103,4298.8,4298.6,33.514]
[1757360501484,0.3103,4298.8,4298.7,0.241]
[1757360502492,0.3103,4298.8,4298.6,33.514]
[1757360502789,0.3103,4298.7,4298.6,33.514]
[1757360502982,0.3103,4298.7,4298.6,33.755]
[1757360503783,0.3103,4298.7,4298.6,33.514]
[1757360504088,0.3103,4298.7,4298.6,33.755]
[1757360504284,0.1272,4297.5,4297.2,33.7455705]
[1757360504591,0.5244,4297.4,4297.3,0.241]
[1757360505390,0.1272,4297.5,4297.3,0.241]
[1757360505687,0.3103,4297.4,4297.3,0.241]
[1757360506781,0.2942,4297.3,4297.2,33.74777532]
[1757360506977,0.2942,4297.3,4297.2,33.98877532]
[1757360510683,0.2942,4297.3,4297.2,33.74777532]
[1757360510883,0.2942,4297.3,4297.2,33.98877532]
[1757360511982,0.2942,4297.3,4297.2,33.512]
[1757360512283,4.2942,4297.3,4297.2,33.753]
[1757360512484,4.2942,4297.3,4297.2,33.512]
[1757360512686,0.7117,4297.2,4297.1,0.241]
[1757360512985,0.1183,4296.5,4296.4,0.18349694]
[1757360513188,0.2942,4295.9,4295.8,33.512]
[1757360513391,0.2942,4295.9,4295.8,33.752]
[1757360513686,0.1183,4296.0,4295.8,33.752]
[1757360513891,0.2942,4296.4,4295.8,33.752]
[1757360514490,0.3303,4297.0,4295.8,33.99030141]
[1757360514787,0.5062,4296.9,4296.0,0.41896]
[1757360514986,0.5062,4296.9,4296.1,0.24]
[1757360515385,0.5062,4296.9,4296.1,0.65895]
[1757360516284,0.5062,4296.9,4296.1,0.24]
[1757360516785,0.2942,4295.9,4295.8,33.94016386]
[1757360516983,0.1183,4296.5,4295.8,34.59914386]
[1757360517190,0.2942,4296.4,4295.8,34.59914386]
[1757360517387,0.2942,4296.4,4295.8,34.18016386]
[1757360517582,0.2942,4296.4,4295.8,34.59913386]
[1757360518281,0.1183,4296.5,4295.8,33.94016386]
[1757360518489,0.6245,4296.0,4295.9,0.24]
[1757360518693,0.4125,4296.0,4295.9,0.24]
[1757360518989,0.3303,4296.5,4295.9,0.24]
[1757360519187,0.5062,4296.4,4295.9,0.24]
[1757360519990,0.1183,4296.5,4295.9,0.65897]
[1757360520583,0.4125,4297.0,4296.0,4.0]
[1757360520780,0.2942,4297.4,4297.0,0.1174]
[1757360520987,0.2942,4297.4,4297.3,0.4932]
[1757360522490,0.5062,4297.4,4297.3,0.3758]
[1757360522892,0.2942,4297.4,4297.3,0.4932]
[1757360523090,0.4404,4297.5,4297.4,0.1174]
[1757360523389,1.0649,4297.5,4297.4,0.3758]
[1757360523582,1.2704,4297.5,4297.4,0.3758]
[1757360523787,1.2704,4297.5,4297.4,0.4279]
[1757360524192,0.8529,4297.5,4297.4,0.6158]
[1757360524393,0.8529,4297.5,4297.4,0.7332]
[1757360525384,1.2704,4297.5,4296.6,0.1174]
[1757360525592,0.1183,4297.0,4296.2,2.0909754]
[1757360525790,0.212,4296.2,4296.1,0.3758]
[1757360525995,0.5062,4296.2,4296.1,0.6158]
[1757360526191,0.5062,4296.2,4296.1,0.3758]
[1757360526392,0.5062,4296.2,4296.1,0.6158]
[1757360526685,0.2942,4296.2,4296.1,0.7332]
[1757360527993,0.5358,4296.0,4295.9,0.1879]
[1757360528189,0.5358,4296.0,4295.9,0.24]
[1757360528385,0.5358,4296.0,4295.9,0.4279]
[1757360528585,0.83,4296.0,4295.9,0.4279]
[1757360529691,0.83,4296.0,4295.9,0.6158]
[1757360532205,0.4125,4296.0,4295.9,0.7332]
[1757360532393,0.4236,4296.1,4295.9,0.7332]
[1757360532594,0.4236,4296.1,4295.9,0.6158]
[1757360532799,0.4236,4296.1,4296.0,0.5805]
[1757360534499,0.7178,4296.1,4296.0,0.5805]
[1757360536599,0.4236,4296.1,4296.0,0.5805]
[1757360537300,0.7192,4296.1,4296.0,0.5805]
[1757360537701,0.9175,4296.1,4296.0,0.5805]
[1757360537902,1.1219,4296.1,4296.0,0.6445]
[1757360539805,0.9175,4296.1,4296.0,0.8209]
[1757360540002,0.1183,4297.0,4296.0,4.7633]
[1757360540207,0.2956,4296.9,4296.1,0.2947]
[1757360540407,0.2956,4296.9,4296.2,0.24]
[1757360540599,0.2956,4296.9,4296.3,0.24]
[1757360540812,0.4939,4296.4,4296.3,0.9536]
[1757360541506,0.6983,4296.4,4296.3,0.6589]
[1757360541900,0.6983,4296.4,4296.3,0.2035]
[1757360542106,0.6983,4296.4,4296.3,0.4435]
[1757360542305,0.6983,4296.4,4296.3,0.24]
[1757360543108,0.6983,4296.4,4296.3,0.4435]
[1757360544706,0.6983,4296.4,4296.3,0.6589]
[1757360545103,0.2956,4296.7,4296.4,0.2947]
[1757360545305,0.4939,4296.7,4296.6,0.7136]
[1757360545605,0.4939,4296.7,4296.6,0.9536]
[1757360551511,0.2956,4296.9,4296.6,0.6589]
[1757360551714,0.31797024,4297.0,4296.8,0.7136]
[1757360551913,0.1183,4297.5,4296.9,0.9843]
[1757360552117,0.1983,4297.1,4297.0,0.7443]
[1757360552415,0.4027,4297.1,4297.0,0.7443]
[1757360553911,0.6983,4297.1,4297.0,0.7443]
[1757360554522,0.4939,4297.1,4297.0,0.8726]
[1757360557918,0.6983,4297.1,4297.0,0.7443]
[1757360562726,0.4258,4297.0,4296.9,33.52]
[1757360562915,0.4258,4297.0,4296.9,33.76]
[1757360564524,0.2956,4297.0,4296.9,34.0854]
[1757360565020,0.868,4297.2,4297.1,0.4189]
[1757360565323,0.868,4297.2,4297.1,0.9843]
[1757360566926,1.0724,4297.2,4297.1,0.9843]
[1757360569530,0.5724,4297.2,4297.1,0.9843]
[1757360569828,0.3741,4297.2,4297.1,0.9843]
[1757360570533,0.17473699,4297.2,4297.1,0.9843]
[1757360570723,0.325,4297.4,4297.1,0.9843]
[1757360570923,0.4032,4297.5,4297.1,0.6589]
[1757360571121,0.2142,4297.3,4297.2,0.7071]
[1757360571321,0.4032,4297.5,4297.2,0.9471]
[1757360571524,0.1302,4299.0,4297.3,0.2987]
[1757360571828,0.23266,4298.8,4297.6,0.2987]
[1757360572029,0.2142,4297.9,4297.8,0.7071]
[1757360573123,0.4163,4297.9,4297.8,0.7071]
[1757360573318,0.4163,4297.9,4297.7,0.24]
[1757360573626,0.5928,4297.6,4297.5,0.4281]
[1757360573817,0.5928,4297.6,4297.5,0.6681]
[1757360575224,0.5928,4297.6,4297.5,0.8761]